[Event "*** Titled Tuesday Blitz"]
[Site "Chess.com"]
[Date "2019.10.01"]
[Round "4"]
[White "SoltaniciR"]
[Black "1stSecond"]
[Result "0-1"]
[WhiteElo "2577"]
[BlackElo "2847"]
[TimeControl "180+2"]
[EndTime "13:57:29 PDT"]
[Termination "1stSecond won by resignation"]

1. e4 {[%clk 0:03:01.9]} 1... c5 {[%clk 0:02:58.2]} 2. Nf3 {[%clk 0:03:01.8]}
2... Nc6 {[%clk 0:02:59.5]} 3. Nc3 {[%clk 0:03:01.8]} 3... e6 {[%clk 0:02:56.2]}
4. d4 {[%clk 0:03:02.7]} 4... cxd4 {[%clk 0:02:58.1]} 5. Nxd4 {[%clk 0:03:03.8]}
5... Qc7 {[%clk 0:02:59.7]} 6. Be2 {[%clk 0:03:02.6]} 6... a6 {[%clk 0:02:59.8]}
7. O-O {[%clk 0:03:03.6]} 7... Nf6 {[%clk 0:03:01.2]} 8. Be3 {[%clk 0:03:04.8]}
8... Bb4 {[%clk 0:03:00.9]} 9. Na4 {[%clk 0:03:04.7]} 9... Be7 {[%clk 0:03:02]}
10. Nxc6 {[%clk 0:03:03.1]} 10... bxc6 {[%clk 0:03:02.2]} 11. Nb6 {[%clk
0:03:04.3]} 11... Rb8 {[%clk 0:03:02.6]} 12. Nxc8 {[%clk 0:03:05.5]} 12... Qxc8
{[%clk 0:03:03.5]} 13. Bd4 {[%clk 0:03:01.2]} 13... c5 {[%clk 0:03:03.1]} 14.
Be5 {[%clk 0:03:02.3]} 14... Rb6 {[%clk 0:03:04.3]} 15. b3 {[%clk 0:02:59.5]}
15... O-O {[%clk 0:02:58.2]} 16. Bd3 {[%clk 0:02:55.1]} 16... d6 {[%clk
0:02:56.6]} 17. Bb2 {[%clk 0:02:54.4]} 17... Nd7 {[%clk 0:02:57.4]} 18. f4
{[%clk 0:02:07.9]} 18... Qd8 {[%clk 0:02:13.2]} 19. Qe2 {[%clk 0:02:02.3]} 19...
a5 {[%clk 0:01:28.2]} 20. a4 {[%clk 0:02:02.5]} 20... Nb8 {[%clk 0:01:26]} 21.
Bb5 {[%clk 0:01:19.7]} 21... Nc6 {[%clk 0:01:26.2]} 22. Rad1 {[%clk 0:01:20.5]}
22... Qc7 {[%clk 0:01:05.9]} 23. e5 {[%clk 0:01:15.9]} 23... Nd4 {[%clk
0:01:00]} 24. Qd3 {[%clk 0:01:12.4]} 24... dxe5 {[%clk 0:00:53.9]} 25. fxe5
{[%clk 0:00:58.2]} 25... Qxe5 {[%clk 0:00:54.1]} 26. Kh1 {[%clk 0:00:43.7]}
26... Rd6 {[%clk 0:00:39.7]} 27. Qh3 {[%clk 0:00:43.8]} 27... Qg5 {[%clk
0:00:27.8]} 28. Bd3 {[%clk 0:00:43.5]} 28... f5 {[%clk 0:00:21.3]} 29. Bc3
{[%clk 0:00:43.5]} 29... Bd8 {[%clk 0:00:20.9]} 30. Rde1 {[%clk 0:00:41.1]}
30... Bc7 {[%clk 0:00:20.9]} 31. Bc4 {[%clk 0:00:31.5]} 31... Rf6 {[%clk
0:00:20.6]} 32. Bxd4 {[%clk 0:00:28.7]} 32... cxd4 {[%clk 0:00:21.8]} 33. Qf3
{[%clk 0:00:24.7]} 33... Rh6 {[%clk 0:00:21.3]} 34. h3 {[%clk 0:00:24.2]} 34...
Rf6 {[%clk 0:00:16.5]} 35. Qb7 {[%clk 0:00:24.7]} 35... Bd8 {[%clk 0:00:13.6]}
36. Qb8 {[%clk 0:00:22.8]} 36... Rd7 {[%clk 0:00:05.4]} 37. Rxe6 {[%clk
0:00:22]} 37... Kf8 {[%clk 0:00:05.9]} 38. Rfe1 {[%clk 0:00:18.7]} 38... Rxe6
{[%clk 0:00:06.7]} 39. Bxe6 {[%clk 0:00:19.6]} 39... Rc7 {[%clk 0:00:04.5]} 40.
Qb5 {[%clk 0:00:18.4]} 40... g6 {[%clk 0:00:05.1]} 41. Qe5 {[%clk 0:00:18.3]}
41... Qf6 {[%clk 0:00:05.9]} 42. Qxa5 {[%clk 0:00:18.6]} 42... Rxc2 {[%clk
0:00:06]} 43. Qb4+ {[%clk 0:00:19.7]} 43... Be7 {[%clk 0:00:06.4]} 44. Qb8+
{[%clk 0:00:20.6]} 44... Kg7 {[%clk 0:00:08]} 45. Qg3 {[%clk 0:00:19.5]} 45...
Rc3 {[%clk 0:00:07.6]} 46. Qf2 {[%clk 0:00:18]} 46... Bc5 {[%clk 0:00:05.9]} 47.
Bc4 {[%clk 0:00:18.7]} 47... Re3 {[%clk 0:00:06.7]} 48. Rd1 {[%clk 0:00:12.7]}
48... Qe5 {[%clk 0:00:06.7]} 49. a5 {[%clk 0:00:12.5]} 49... Bd6 {[%clk
0:00:07.6]} 50. Kg1 {[%clk 0:00:09.7]} 50... Qh2+ {[%clk 0:00:07.9]} 51. Kf1
{[%clk 0:00:11]} 51... Re4 {[%clk 0:00:04.8]} 52. Be2 {[%clk 0:00:10.1]} 52...
Bg3 {[%clk 0:00:05.6]} 53. Qg1 {[%clk 0:00:11]} 53... Qxg1+ {[%clk 0:00:07.1]}
54. Kxg1 {[%clk 0:00:11.8]} 54... Rxe2 {[%clk 0:00:08.7]} 55. b4 {[%clk
0:00:10.8]} 55... d3 {[%clk 0:00:09.5]} 56. a6 {[%clk 0:00:07.1]} 56... d2
{[%clk 0:00:10.5]} 0-1

[Event "*** Titled Tuesday Blitz"]
[Site "Chess.com"]
[Date "2019.10.01"]
[Round "4"]
[White "mortngabriel"]
[Black "Grebeniuk-S"]
[Result "1-0"]
[WhiteElo "2338"]
[BlackElo "2476"]
[TimeControl "180+2"]
[EndTime "13:57:30 PDT"]
[Termination "mortngabriel won by resignation"]

1. e4 {[%clk 0:03:01.9]} 1... c5 {[%clk 0:02:58.5]} 2. Nf3 {[%clk 0:03:02.3]}
2... d6 {[%clk 0:02:59.2]} 3. Bb5+ {[%clk 0:03:02.7]} 3... Nd7 {[%clk
0:02:59.2]} 4. O-O {[%clk 0:03:03.4]} 4... Nf6 {[%clk 0:02:52.7]} 5. Re1 {[%clk
0:03:04]} 5... e5 {[%clk 0:02:53.3]} 6. c3 {[%clk 0:03:02.1]} 6... Qc7 {[%clk
0:02:49.7]} 7. d4 {[%clk 0:03:01.1]} 7... Be7 {[%clk 0:02:50]} 8. Nbd2 {[%clk
0:02:46.3]} 8... O-O {[%clk 0:02:47.5]} 9. dxe5 {[%clk 0:02:24.6]} 9... dxe5
{[%clk 0:02:47.5]} 10. Nc4 {[%clk 0:01:53.8]} 10... a6 {[%clk 0:02:34.1]} 11.
Bxd7 {[%clk 0:01:54.3]} 11... Nxd7 {[%clk 0:02:34.6]} 12. a4 {[%clk 0:01:52.8]}
12... Re8 {[%clk 0:02:29.5]} 13. a5 {[%clk 0:01:50.4]} 13... Bf8 {[%clk
0:02:29.7]} 14. Bg5 {[%clk 0:01:44.3]} 14... f6 {[%clk 0:02:22.6]} 15. Bc1
{[%clk 0:01:25.3]} 15... Kh8 {[%clk 0:02:20.3]} 16. Ne3 {[%clk 0:01:06.4]} 16...
b5 {[%clk 0:02:13.5]} 17. Nh4 {[%clk 0:01:00.2]} 17... Bb7 {[%clk 0:02:07.8]}
18. Qh5 {[%clk 0:00:47.6]} 18... Bxe4 {[%clk 0:02:00.2]} 19. f3 {[%clk
0:00:36.6]} 19... Bd3 {[%clk 0:01:55.3]} 20. Nd5 {[%clk 0:00:18.3]} 20... Qd6
{[%clk 0:01:50.4]} 21. Nf4 {[%clk 0:00:17.1]} 21... c4 {[%clk 0:01:35.9]} 22. b3
{[%clk 0:00:08.6]} 22... Nc5 {[%clk 0:01:34.2]} 23. Ba3 {[%clk 0:00:06.2]} 23...
Rec8 {[%clk 0:01:16.8]} 24. Nfg6+ {[%clk 0:00:03.3]} 24... Kg8 {[%clk
0:01:16.8]} 25. Nxf8 {[%clk 0:00:05.2]} 25... Qxf8 {[%clk 0:01:14.5]} 26. Rad1
{[%clk 0:00:06.4]} 26... Qf7 {[%clk 0:01:15.3]} 27. Qg4 {[%clk 0:00:06.7]} 27...
Nxb3 {[%clk 0:01:12.8]} 28. Rxd3 {[%clk 0:00:08]} 28... cxd3 {[%clk 0:01:13]}
29. Nf5 {[%clk 0:00:09.9]} 29... Kh8 {[%clk 0:01:10.9]} 30. Nd6 {[%clk
0:00:09.8]} 30... Qg6 {[%clk 0:01:03.2]} 31. Qe6 {[%clk 0:00:10.3]} 31... d2
{[%clk 0:00:43.3]} 32. Rd1 {[%clk 0:00:10.8]} 32... h6 {[%clk 0:00:14]} 33. Qxb3
{[%clk 0:00:08.6]} 33... Rd8 {[%clk 0:00:11.8]} 34. Qd5 {[%clk 0:00:09.1]} 34...
Kh7 {[%clk 0:00:12.4]} 35. Qxd2 {[%clk 0:00:08.5]} 35... Rac8 {[%clk 0:00:12.7]}
36. Bb4 {[%clk 0:00:09.8]} 36... Rc6 {[%clk 0:00:13.3]} 37. Qd3 {[%clk
0:00:11.1]} 37... f5 {[%clk 0:00:14.2]} 38. Qd5 {[%clk 0:00:09.3]} 38... Rc4
{[%clk 0:00:12.9]} 39. h3 {[%clk 0:00:07]} 39... e4 {[%clk 0:00:13.5]} 40. fxe4
{[%clk 0:00:03.4]} 40... fxe4 {[%clk 0:00:14.8]} 41. Re1 {[%clk 0:00:04.9]}
41... Rd7 {[%clk 0:00:12.6]} 42. Qe5 {[%clk 0:00:04.7]} 42... e3 {[%clk
0:00:10.9]} 43. Nxc4 {[%clk 0:00:05.8]} 43... bxc4 {[%clk 0:00:11.5]} 44. Qxe3
{[%clk 0:00:07.3]} 44... Rd3 {[%clk 0:00:12.6]} 45. Qe4 {[%clk 0:00:08.3]} 45...
Rd2 {[%clk 0:00:12.9]} 46. Qxg6+ {[%clk 0:00:09.1]} 46... Kxg6 {[%clk
0:00:14.8]} 47. Re4 {[%clk 0:00:10.8]} 47... Kf5 {[%clk 0:00:15.4]} 48. Rxc4
{[%clk 0:00:12]} 48... g5 {[%clk 0:00:16]} 49. Rc6 {[%clk 0:00:12.6]} 49... h5
{[%clk 0:00:17.5]} 50. Rxa6 {[%clk 0:00:12.8]} 50... g4 {[%clk 0:00:18.7]} 51.
hxg4+ {[%clk 0:00:13.6]} 51... hxg4 {[%clk 0:00:20.6]} 52. Kh2 {[%clk
0:00:14.8]} 52... Kf4 {[%clk 0:00:21.1]} 53. Rf6+ {[%clk 0:00:15.8]} 53... Kg5
{[%clk 0:00:22.6]} 54. Rf8 {[%clk 0:00:16.7]} 54... Rd3 {[%clk 0:00:23.9]} 55.
a6 {[%clk 0:00:16.6]} 55... Kh4 {[%clk 0:00:25.3]} 56. Rh8+ {[%clk 0:00:16]}
56... Kg5 {[%clk 0:00:26.7]} 57. a7 {[%clk 0:00:17.4]} 57... g3+ {[%clk
0:00:26.8]} 58. Kh3 {[%clk 0:00:17.7]} 1-0

[Event "*** Titled Tuesday Blitz"]
[Site "Chess.com"]
[Date "2019.10.01"]
[Round "4"]
[White "Roman_Ovetchkin"]
[Black "champ2005"]
[Result "0-1"]
[WhiteElo "2661"]
[BlackElo "2826"]
[TimeControl "180+2"]
[EndTime "13:57:34 PDT"]
[Termination "champ2005 won by resignation"]

1. d4 {[%clk 0:03:01.9]} 1... Nf6 {[%clk 0:02:59.3]} 2. c4 {[%clk 0:03:02.9]}
2... Nc6 {[%clk 0:03:00.2]} 3. Nf3 {[%clk 0:03:01.9]} 3... e6 {[%clk 0:03:01.1]}
4. a3 {[%clk 0:03:01.2]} 4... d6 {[%clk 0:02:50.4]} 5. Nc3 {[%clk 0:03:01.6]}
5... g6 {[%clk 0:02:45.4]} 6. e4 {[%clk 0:03:01]} 6... Bg7 {[%clk 0:02:46.5]} 7.
Be2 {[%clk 0:03:00]} 7... O-O {[%clk 0:02:47.2]} 8. Be3 {[%clk 0:03:01]} 8... e5
{[%clk 0:02:47.5]} 9. d5 {[%clk 0:03:01.7]} 9... Ne7 {[%clk 0:02:48.8]} 10. Nd2
{[%clk 0:03:02.2]} 10... Nd7 {[%clk 0:02:47.2]} 11. h4 {[%clk 0:02:29.8]} 11...
f5 {[%clk 0:02:46.6]} 12. f3 {[%clk 0:02:30.9]} 12... f4 {[%clk 0:02:41.1]} 13.
Bf2 {[%clk 0:02:31.2]} 13... c5 {[%clk 0:02:42.4]} 14. b4 {[%clk 0:02:29.6]}
14... b6 {[%clk 0:02:43.1]} 15. Rb1 {[%clk 0:02:28.8]} 15... Nf6 {[%clk
0:02:20.7]} 16. bxc5 {[%clk 0:02:28.5]} 16... dxc5 {[%clk 0:02:13.5]} 17. a4
{[%clk 0:02:27.4]} 17... a5 {[%clk 0:01:56.3]} 18. Qb3 {[%clk 0:02:26.4]} 18...
Nd7 {[%clk 0:01:56.9]} 19. Nb5 {[%clk 0:02:05.9]} 19... Ba6 {[%clk 0:01:56]} 20.
h5 {[%clk 0:02:00]} 20... g5 {[%clk 0:01:43.4]} 21. h6 {[%clk 0:02:00.9]} 21...
Bf6 {[%clk 0:01:44.6]} 22. Nf1 {[%clk 0:01:54.5]} 22... Nc8 {[%clk 0:01:31.1]}
23. Nh2 {[%clk 0:01:52.9]} 23... Bxb5 {[%clk 0:01:26.6]} 24. Qxb5 {[%clk
0:01:37.5]} 24... Nd6 {[%clk 0:01:27.6]} 25. Qb3 {[%clk 0:01:38.9]} 25... Qe7
{[%clk 0:01:12.9]} 26. Ng4 {[%clk 0:01:39]} 26... Kh8 {[%clk 0:01:10.9]} 27. Kd2
{[%clk 0:01:39.1]} 27... Rab8 {[%clk 0:01:05.4]} 28. Rh3 {[%clk 0:01:32]} 28...
Rb7 {[%clk 0:01:03.1]} 29. Kc2 {[%clk 0:01:28]} 29... Nf7 {[%clk 0:00:45.9]} 30.
Be1 {[%clk 0:01:26.7]} 30... Rc7 {[%clk 0:00:44.3]} 31. Bc3 {[%clk 0:01:26.3]}
31... Rg8 {[%clk 0:00:43.8]} 32. Rbh1 {[%clk 0:01:20.3]} 32... Rg6 {[%clk
0:00:44.8]} 33. Qb2 {[%clk 0:01:14.5]} 33... Kg8 {[%clk 0:00:43.7]} 34. Bd3
{[%clk 0:01:12]} 34... Bh8 {[%clk 0:00:43.1]} 35. g3 {[%clk 0:01:07.3]} 35...
Rc8 {[%clk 0:00:33.2]} 36. gxf4 {[%clk 0:01:05.2]} 36... gxf4 {[%clk 0:00:34.3]}
37. Rh5 {[%clk 0:01:02.2]} 37... Re8 {[%clk 0:00:29.6]} 38. Be1 {[%clk
0:00:51.4]} 38... Nf8 {[%clk 0:00:20.9]} 39. Qb5 {[%clk 0:00:45.9]} 39... Nd6
{[%clk 0:00:19.8]} 40. Qb3 {[%clk 0:00:38.2]} 40... Nd7 {[%clk 0:00:20.3]} 41.
Bh4 {[%clk 0:00:39]} 41... Qf7 {[%clk 0:00:21.8]} 42. Bf1 {[%clk 0:00:35.7]}
42... Nxe4 {[%clk 0:00:21.5]} 43. fxe4 {[%clk 0:00:24.4]} 43... Rxg4 {[%clk
0:00:22.5]} 44. Bh3 {[%clk 0:00:26]} 44... Qxh5 {[%clk 0:00:20.2]} 45. Qf3
{[%clk 0:00:16.1]} 45... Rxh4 {[%clk 0:00:15.3]} 46. Qxh5 {[%clk 0:00:08.3]}
46... Rxh5 {[%clk 0:00:15.5]} 47. Be6+ {[%clk 0:00:08.9]} 47... Rxe6 {[%clk
0:00:16.3]} 48. dxe6 {[%clk 0:00:10.5]} 48... Nf6 {[%clk 0:00:15.5]} 49. Rd1
{[%clk 0:00:10.2]} 49... Kf8 {[%clk 0:00:15.4]} 50. Rd8+ {[%clk 0:00:10]} 50...
Ke7 {[%clk 0:00:16.8]} 51. Rxh8 {[%clk 0:00:11.5]} 51... Rxh6 {[%clk 0:00:16.4]}
52. Rb8 {[%clk 0:00:12.3]} 52... Rh2+ {[%clk 0:00:17.2]} 53. Kd3 {[%clk
0:00:12]} 53... Rh3+ {[%clk 0:00:18.4]} 54. Kd2 {[%clk 0:00:11.1]} 54... Nxe4+
{[%clk 0:00:19.6]} 0-1

[Event "*** Titled Tuesday Blitz"]
[Site "Chess.com"]
[Date "2019.10.01"]
[Round "4"]
[White "eldur16"]
[Black "comsac"]
[Result "1-0"]
[WhiteElo "2634"]
[BlackElo "2279"]
[TimeControl "180+2"]
[EndTime "13:57:48 PDT"]
[Termination "eldur16 won by resignation"]

1. e4 {[%clk 0:03:01.9]} 1... e5 {[%clk 0:02:59.6]} 2. Nf3 {[%clk 0:03:01.9]}
2... Nc6 {[%clk 0:03:01]} 3. Nc3 {[%clk 0:03:02.2]} 3... Nf6 {[%clk 0:03:01.9]}
4. Bb5 {[%clk 0:03:02.7]} 4... Bc5 {[%clk 0:02:59.9]} 5. Bxc6 {[%clk 0:02:55.4]}
5... dxc6 {[%clk 0:03:00.9]} 6. d3 {[%clk 0:02:55.8]} 6... Bg4 {[%clk
0:02:50.3]} 7. h3 {[%clk 0:02:55.9]} 7... Bh5 {[%clk 0:02:51.3]} 8. Qe2 {[%clk
0:02:54.1]} 8... Qe7 {[%clk 0:02:48.5]} 9. Be3 {[%clk 0:02:53.1]} 9... O-O-O
{[%clk 0:02:44]} 10. Bxc5 {[%clk 0:02:47.6]} 10... Qxc5 {[%clk 0:02:45.9]} 11.
Qe3 {[%clk 0:02:48.6]} 11... Qxe3+ {[%clk 0:02:25.3]} 12. fxe3 {[%clk
0:02:48.9]} 12... Bxf3 {[%clk 0:02:27.2]} 13. gxf3 {[%clk 0:02:49.3]} 13... Nh5
{[%clk 0:02:27.5]} 14. Rg1 {[%clk 0:02:49.3]} 14... g6 {[%clk 0:02:28]} 15. Kd2
{[%clk 0:02:28.6]} 15... Rhf8 {[%clk 0:02:25.3]} 16. Raf1 {[%clk 0:01:58.9]}
16... f5 {[%clk 0:02:24.6]} 17. Rg5 {[%clk 0:01:57.4]} 17... Kd7 {[%clk
0:00:58.3]} 18. exf5 {[%clk 0:01:49.7]} 18... Rxf5 {[%clk 0:01:00.2]} 19. Rxf5
{[%clk 0:01:47.5]} 19... gxf5 {[%clk 0:01:02.1]} 20. Rg1 {[%clk 0:01:48.3]}
20... Ke6 {[%clk 0:00:56.8]} 21. b4 {[%clk 0:01:40.7]} 21... Nf6 {[%clk
0:00:45.2]} 22. Rg7 {[%clk 0:01:35.8]} 22... Rd7 {[%clk 0:00:46.4]} 23. Rg5
{[%clk 0:01:36.4]} 23... Rd8 {[%clk 0:00:41.5]} 24. Ne2 {[%clk 0:01:18.8]} 24...
Rg8 {[%clk 0:00:39.3]} 25. Rxg8 {[%clk 0:01:13.9]} 25... Nxg8 {[%clk 0:00:41.2]}
26. f4 {[%clk 0:01:14.2]} 26... Ne7 {[%clk 0:00:32.3]} 27. c4 {[%clk 0:01:12.1]}
27... Ng6 {[%clk 0:00:27.9]} 28. a4 {[%clk 0:01:09.1]} 28... Nh4 {[%clk
0:00:26.6]} 29. fxe5 {[%clk 0:01:06.5]} 29... Kxe5 {[%clk 0:00:27.2]} 30. Nf4
{[%clk 0:01:03.5]} 30... Ng6 {[%clk 0:00:16.5]} 31. d4+ {[%clk 0:00:38.6]} 31...
Ke4 {[%clk 0:00:17.7]} 32. Nd3 {[%clk 0:00:39.7]} 32... b6 {[%clk 0:00:17.1]}
33. Ke2 {[%clk 0:00:40.1]} 33... f4 {[%clk 0:00:06.1]} 34. Nf2+ {[%clk
0:00:40.8]} 34... Kf5 {[%clk 0:00:07.8]} 35. e4+ {[%clk 0:00:41.4]} 35... Ke6
{[%clk 0:00:08.5]} 36. Kf3 {[%clk 0:00:41.5]} 36... h5 {[%clk 0:00:09.9]} 37.
Nd3 {[%clk 0:00:34.1]} 37... Nh4+ {[%clk 0:00:10.7]} 38. Kxf4 {[%clk 0:00:34.6]}
38... Ng2+ {[%clk 0:00:11.8]} 39. Kg5 {[%clk 0:00:35]} 39... Ne3 {[%clk
0:00:12.8]} 40. c5 {[%clk 0:00:34.9]} 40... Nc2 {[%clk 0:00:12.5]} 41. Nf4+
{[%clk 0:00:33.9]} 41... Kf7 {[%clk 0:00:13.5]} 42. Nxh5 {[%clk 0:00:30.9]}
42... Nxd4 {[%clk 0:00:10.9]} 43. Nf4 {[%clk 0:00:29.8]} 43... a5 {[%clk
0:00:05.4]} 44. bxa5 {[%clk 0:00:26.1]} 44... bxa5 {[%clk 0:00:06.7]} 45. h4
{[%clk 0:00:26.8]} 45... Nb3 {[%clk 0:00:06.2]} 46. h5 {[%clk 0:00:26.1]} 46...
Nxc5 {[%clk 0:00:06.9]} 47. e5 {[%clk 0:00:26.5]} 47... Ne4+ {[%clk 0:00:06.6]}
48. Kf5 {[%clk 0:00:27]} 48... Ng3+ {[%clk 0:00:07.8]} 49. Kg4 {[%clk
0:00:26.8]} 49... Ne4 {[%clk 0:00:08.7]} 50. h6 {[%clk 0:00:27.5]} 50... c5
{[%clk 0:00:08.6]} 51. e6+ {[%clk 0:00:27.1]} 51... Kf6 {[%clk 0:00:07.2]} 52.
Nh5+ {[%clk 0:00:24.3]} 52... Kg6 {[%clk 0:00:07.8]} 53. e7 {[%clk 0:00:20.4]}
53... Nd6 {[%clk 0:00:08.8]} 54. h7 {[%clk 0:00:20]} 54... Kxh7 {[%clk
0:00:09.4]} 55. Nf6+ {[%clk 0:00:20.9]} 55... Kg6 {[%clk 0:00:10.8]} 56. e8=Q+
{[%clk 0:00:20.8]} 56... Nxe8 {[%clk 0:00:12.1]} 57. Nxe8 {[%clk 0:00:21.8]}
57... Kf7 {[%clk 0:00:13.5]} 58. Nxc7 {[%clk 0:00:22.3]} 58... Ke7 {[%clk
0:00:15.1]} 59. Kf4 {[%clk 0:00:22.5]} 59... Kd6 {[%clk 0:00:16.6]} 60. Nb5+
{[%clk 0:00:22.5]} 60... Kd5 {[%clk 0:00:17.5]} 61. Ke3 {[%clk 0:00:22.9]} 61...
Kc4 {[%clk 0:00:19]} 62. Kd2 {[%clk 0:00:22.1]} 62... Kb3 {[%clk 0:00:19.3]} 63.
Nc3 {[%clk 0:00:21.1]} 63... Kb4 {[%clk 0:00:20.6]} 64. Kc2 {[%clk 0:00:20.8]}
64... Kc4 {[%clk 0:00:21.4]} 65. Na2 {[%clk 0:00:20.9]} 65... Kd4 {[%clk
0:00:21.8]} 66. Kb3 {[%clk 0:00:21.5]} 66... c4+ {[%clk 0:00:22.8]} 67. Kc2
{[%clk 0:00:22.2]} 67... Kc5 {[%clk 0:00:24.2]} 68. Kc3 {[%clk 0:00:23.2]} 68...
Kd5 {[%clk 0:00:25.7]} 69. Nc1 {[%clk 0:00:24]} 69... Kc5 {[%clk 0:00:26.8]} 70.
Ne2 {[%clk 0:00:24.9]} 70... Kd5 {[%clk 0:00:27.8]} 71. Nd4 {[%clk 0:00:25.8]}
71... Kc5 {[%clk 0:00:28.8]} 72. Nb5 {[%clk 0:00:26.9]} 72... Kd5 {[%clk
0:00:29]} 73. Na3 {[%clk 0:00:27.5]} 73... Kc5 {[%clk 0:00:30.9]} 74. Nxc4
{[%clk 0:00:28.2]} 74... Kd5 {[%clk 0:00:32.5]} 75. Nxa5 {[%clk 0:00:29.1]}
75... Kc5 {[%clk 0:00:33.5]} 76. Nc4 {[%clk 0:00:30.2]} 1-0

[Event "*** Titled Tuesday Blitz"]
[Site "Chess.com"]
[Date "2019.10.01"]
[Round "4"]
[White "HanSchut"]
[Black "FranciscodelaF"]
[Result "0-1"]
[WhiteElo "2210"]
[BlackElo "2453"]
[TimeControl "180+2"]
[EndTime "13:57:53 PDT"]
[Termination "FranciscodelaF won by resignation"]

1. e4 {[%clk 0:03:01.9]} 1... d5 {[%clk 0:02:53.3]} 2. exd5 {[%clk 0:03:02.6]}
2... Nf6 {[%clk 0:02:54.9]} 3. Bb5+ {[%clk 0:03:02.6]} 3... Nbd7 {[%clk
0:02:55.2]} 4. Be2 {[%clk 0:03:01.3]} 4... Nxd5 {[%clk 0:02:54]} 5. d4 {[%clk
0:03:03]} 5... e6 {[%clk 0:02:54.2]} 6. c4 {[%clk 0:03:03.6]} 6... N5f6 {[%clk
0:02:54.6]} 7. Nf3 {[%clk 0:03:01.6]} 7... Bb4+ {[%clk 0:02:53.7]} 8. Nc3 {[%clk
0:03:00.5]} 8... O-O {[%clk 0:02:52.8]} 9. O-O {[%clk 0:03:00.5]} 9... b6 {[%clk
0:02:53.2]} 10. h3 {[%clk 0:03:00.3]} 10... Bb7 {[%clk 0:02:54.1]} 11. Be3
{[%clk 0:03:01.2]} 11... Ne4 {[%clk 0:02:45]} 12. Nxe4 {[%clk 0:02:48.7]} 12...
Bxe4 {[%clk 0:02:46]} 13. Rc1 {[%clk 0:02:28.2]} 13... Be7 {[%clk 0:02:38.1]}
14. Qd2 {[%clk 0:02:23.7]} 14... Nf6 {[%clk 0:02:33]} 15. Rfd1 {[%clk
0:02:22.4]} 15... c6 {[%clk 0:02:30]} 16. Ne5 {[%clk 0:02:17.3]} 16... Rc8
{[%clk 0:02:24.1]} 17. f3 {[%clk 0:02:03.9]} 17... Bg6 {[%clk 0:02:24.7]} 18. g4
{[%clk 0:02:02.8]} 18... Nd7 {[%clk 0:02:18.7]} 19. Nxg6 {[%clk 0:02:02.6]}
19... hxg6 {[%clk 0:02:20.6]} 20. d5 {[%clk 0:01:26.4]} 20... cxd5 {[%clk
0:02:22.5]} 21. cxd5 {[%clk 0:01:26.7]} 21... Rxc1 {[%clk 0:02:22.5]} 22. Rxc1
{[%clk 0:01:27.6]} 22... exd5 {[%clk 0:02:19.3]} 23. Qxd5 {[%clk 0:01:26]} 23...
Bc5 {[%clk 0:02:14.8]} 24. Bxc5 {[%clk 0:01:21.2]} 24... Nxc5 {[%clk 0:02:16.7]}
25. Rd1 {[%clk 0:01:18.5]} 25... Qe7 {[%clk 0:02:03.2]} 26. Qd2 {[%clk
0:01:09.5]} 26... Ne6 {[%clk 0:01:47.9]} 27. Bf1 {[%clk 0:00:56]} 27... Rd8
{[%clk 0:01:38.6]} 28. Qe2 {[%clk 0:00:38.4]} 28... Qc5+ {[%clk 0:01:37.2]} 29.
Kh1 {[%clk 0:00:37.2]} 29... Rxd1 {[%clk 0:01:19.5]} 30. Qxd1 {[%clk 0:00:39.1]}
30... Qf2 {[%clk 0:01:05.6]} 31. Qe2 {[%clk 0:00:37.2]} 31... Qg3 {[%clk
0:01:06.4]} 32. Qg2 {[%clk 0:00:38]} 32... Qe5 {[%clk 0:01:04.6]} 33. Qh2 {[%clk
0:00:39.2]} 33... Nf4 {[%clk 0:01:05.2]} 34. b3 {[%clk 0:00:36.5]} 34... Qe3
{[%clk 0:00:56.9]} 35. Qg3 {[%clk 0:00:32.5]} 35... g5 {[%clk 0:00:57.3]} 36.
Bc4 {[%clk 0:00:24.2]} 36... Qc1+ {[%clk 0:00:47.4]} 37. Qg1 {[%clk 0:00:15.8]}
37... Qxg1+ {[%clk 0:00:47.1]} 38. Kxg1 {[%clk 0:00:17.7]} 38... Nxh3+ {[%clk
0:00:48.4]} 39. Kf1 {[%clk 0:00:16.2]} 39... Kf8 {[%clk 0:00:48.7]} 40. Ke2
{[%clk 0:00:15.1]} 40... Ke7 {[%clk 0:00:50]} 41. Ke3 {[%clk 0:00:15.7]} 41...
Nf4 {[%clk 0:00:46.8]} 42. a4 {[%clk 0:00:15.1]} 42... f6 {[%clk 0:00:47.8]} 43.
Ke4 {[%clk 0:00:15]} 43... Kd6 {[%clk 0:00:49.7]} 44. Kf5 {[%clk 0:00:13.6]}
44... Kc5 {[%clk 0:00:50.1]} 45. Bg8 {[%clk 0:00:11.9]} 45... a6 {[%clk
0:00:49.2]} 46. Bf7 {[%clk 0:00:13]} 46... b5 {[%clk 0:00:50.4]} 47. axb5 {[%clk
0:00:14.9]} 47... axb5 {[%clk 0:00:51.5]} 48. Ke4 {[%clk 0:00:16.8]} 48... Kb4
{[%clk 0:00:52.3]} 49. Kd4 {[%clk 0:00:16.1]} 49... Ka3 {[%clk 0:00:53]} 50. Kc5
{[%clk 0:00:16.1]} 50... b4 {[%clk 0:00:54.3]} 51. Kd6 {[%clk 0:00:13.4]} 51...
Ne2 {[%clk 0:00:49.9]} 52. Ke7 {[%clk 0:00:14.5]} 52... Nd4 {[%clk 0:00:51.1]}
53. Kf8 {[%clk 0:00:15]} 53... g6 {[%clk 0:00:47.7]} 54. Kg7 {[%clk 0:00:15]}
54... Nxf3 {[%clk 0:00:45.8]} 55. Kxg6 {[%clk 0:00:15.6]} 55... Ne5+ {[%clk
0:00:46.3]} 56. Kxf6 {[%clk 0:00:13.9]} 56... Nxf7 {[%clk 0:00:47.3]} 57. Kxf7
{[%clk 0:00:15.6]} 57... Kxb3 {[%clk 0:00:49.1]} 58. Kf6 {[%clk 0:00:17.5]}
58... Ka2 {[%clk 0:00:48.9]} 59. Kxg5 {[%clk 0:00:19.4]} 59... b3 {[%clk
0:00:50.8]} 60. Kh6 {[%clk 0:00:20.4]} 60... b2 {[%clk 0:00:52.7]} 61. g5 {[%clk
0:00:22]} 61... b1=Q {[%clk 0:00:54.6]} 62. g6 {[%clk 0:00:23.7]} 62... Qh1+
{[%clk 0:00:55.9]} 63. Kg7 {[%clk 0:00:24.9]} 63... Kb3 {[%clk 0:00:56.6]} 64.
Kg8 {[%clk 0:00:25.8]} 64... Kc4 {[%clk 0:00:53.2]} 65. g7 {[%clk 0:00:27.7]}
65... Kd5 {[%clk 0:00:53.1]} 66. Kf7 {[%clk 0:00:29.3]} 66... Qf3+ {[%clk
0:00:53.9]} 67. Ke8 {[%clk 0:00:27.7]} 67... Qe4+ {[%clk 0:00:54.6]} 68. Kf8
{[%clk 0:00:29.3]} 68... Qf5+ {[%clk 0:00:55.7]} 69. Ke7 {[%clk 0:00:29.1]}
69... Qe6+ {[%clk 0:00:56.5]} 70. Kf8 {[%clk 0:00:30.3]} 70... Qf6+ {[%clk
0:00:57.6]} 71. Kg8 {[%clk 0:00:30]} 71... Ke6 {[%clk 0:00:54.8]} 72. Kh8 {[%clk
0:00:31.5]} 72... Qh6+ {[%clk 0:00:55.1]} 73. Kg8 {[%clk 0:00:32.4]} 73... Kf6
{[%clk 0:00:55.5]} 0-1